bitfinex/quotes_ETHUSD_20250504
["timestamp","ask_amount","ask_price","bid_price","bid_amount"]
[1746350524620,4.614,1833.6,1833.3,5.4545167]
[1746350525528,5.65398989,1833.7,1833.4,5.50882263]
[1746350525734,5.65398989,1833.7,1833.4,6.60514525]
[1746350526340,5.65398989,1833.7,1833.4,1.15086035]
[1746350526856,5.45488174,1833.3,1832.7,0.7593]
[1746350527154,10.06788174,1833.3,1832.9,5.45579322]
[1746350527318,4.613,1833.3,1832.9,5.45579322]
[1746350527525,4.613,1833.3,1833.0,0.05454877]
[1746350528463,10.06765036,1833.3,1833.0,0.05454877]
[1746350528624,10.06765036,1833.3,1832.9,5.45579322]
[1746350528825,10.06765036,1833.3,1832.9,6.70731842]
[1746350529065,5.4549731,1833.2,1832.9,1.2515252]
[1746350529259,0.8068,1833.1,1832.8,5.4561122]
[1746350529564,10.87463264,1833.3,1832.8,5.51066694]
[1746350530063,16.32953045,1833.3,1832.8,5.51066694]
[1746350530262,10.87463264,1833.3,1832.8,5.51066694]
[1746350530467,4.613,1833.3,1832.9,7.05938505]
[1746350530763,10.06764467,1833.3,1833.0,0.05454942]
[1746350530950,10.06764467,1833.3,1832.9,7.1139347]
[1746350532072,4.613,1833.3,1833.0,5.45551278]
[1746350532255,10.26698989,1833.4,1833.1,0.81385053]
[1746350532455,8.45383171,1833.6,1833.3,5.45464462]
[1746350532456,4.613,1833.6,1833.3,5.45464462]
[1746350532633,4.613,1833.6,1833.3,0.54546446]
[1746350533327,10.06679205,1833.6,1833.3,0.54546446]
[1746350534242,4.613,1833.6,1833.2,5.45475879]
[1746350534765,10.06676007,1833.6,1833.2,5.45475879]
[1746350536163,4.613,1833.6,1833.2,5.45475879]
[1746350536369,6.24354711,1833.4,1832.8,7.56905704]
[1746350536576,5.45484688,1833.3,1832.9,5.45573033]
[1746350537678,5.45496428,1833.2,1832.8,0.7801]
[1746350537890,5.45613373,1832.8,1832.6,0.7801]
[1746350538183,6.24509323,1832.9,1832.5,5.51148367]
[1746350538465,5.45658048,1832.7,1832.3,5.45750504]
[1746350539785,5.45631246,1832.8,1832.3,5.45750504]
[1746350540072,5.45631246,1832.8,1832.3,5.45739559]
[1746350540279,5.45631246,1832.8,1832.4,5.51180277]
[1746350540449,5.45631246,1832.8,1832.4,6.60872261]
[1746350540651,5.45631246,1832.8,1832.4,6.55415791]
[1746350541690,5.45631246,1832.8,1832.4,6.60872265]
[1746350541996,5.45622563,1832.8,1832.4,6.60872265]
[1746350543770,6.24520091,1832.9,1832.4,6.60863791]
[1746350543978,6.24520091,1832.9,1832.5,5.51147555]
[1746350544166,5.45632013,1832.8,1832.4,6.55407317]
[1746350544361,5.45632013,1832.8,1832.4,5.45715333]
[1746350544672,5.45632013,1832.8,1832.5,0.05456474]
[1746350545045,5.45632013,1832.8,1832.4,7.06074587]
[1746350545575,5.45650582,1832.7,1832.4,1.60359254]
[1746350546118,5.65398989,1832.8,1832.3,1.60359254]
[1746350546237,5.45663409,1832.7,1832.3,7.06119222]
[1746350546434,5.45663409,1832.7,1832.3,1.60359254]
[1746350547179,5.45663409,1832.7,1832.3,7.06121152]
[1746350547367,11.11030804,1832.8,1832.4,0.05456747]
[1746350548140,4.672,1832.7,1832.4,0.05456747]
[1746350548440,10.12847664,1832.7,1832.4,0.05456747]
[1746350548981,4.672,1832.7,1832.4,0.05456747]
[1746350550299,10.12846106,1832.7,1832.4,0.05456747]
[1746350550499,10.12846106,1832.7,1832.3,7.06097724]
[1746350550678,10.12846106,1832.7,1832.3,8.41430823]
[1746350550862,10.12846106,1832.7,1832.4,0.05456746]
[1746350551463,4.672,1832.7,1832.4,0.05456746]
[1746350551898,4.672,1832.7,1832.4,5.51183262]
[1746350552195,10.12844712,1832.7,1832.4,0.05456746]
[1746350552371,5.65398989,1832.8,1832.5,7.87907699]
[1746350552566,5.65398989,1832.8,1832.7,5.4564304]
[1746350552768,5.65398989,1832.8,1832.6,5.45650601]
[1746350554201,5.65398989,1832.8,1832.7,5.4564304]
[1746350555465,5.65398989,1832.8,1832.6,5.45653376]
[1746350555666,5.65398989,1832.8,1832.6,6.79009426]
[1746350556020,5.65398989,1832.8,1832.6,1.3335605]
[1746350556297,5.65398989,1832.8,1832.5,7.87902588]
[1746350557017,5.65398989,1832.8,1832.5,7.93358832]
[1746350557521,5.65398989,1832.8,1832.3,13.87186976]
[1746350557522,5.45657124,1832.7,1832.3,13.87186976]
[1746350557678,5.65398989,1832.8,1832.3,13.87186976]
[1746350557679,11.87757064,1832.8,1832.4,0.05456604]
[1746350558020,11.87757064,1832.8,1832.4,5.51178807]
[1746350558406,5.65398989,1832.8,1832.5,5.45700957]
[1746350558912,5.65398989,1832.8,1832.5,5.51157448]
[1746350559213,5.65398989,1832.8,1832.5,5.45700957]
[1746350559524,5.65398989,1832.8,1832.4,5.51170568]
[1746350560023,11.1101377,1832.8,1832.4,5.51170568]
[1746350560481,11.1101377,1832.8,1832.4,5.45713968]
[1746350561078,16.56655633,1832.8,1832.3,7.83838757]
[1746350561309,11.1101377,1832.8,1832.3,7.83838757]
[1746350561511,5.45645823,1832.7,1832.3,7.83838757]
[1746350561713,11.1103188,1832.8,1832.3,7.83838757]
[1746350562039,11.11031957,1832.8,1832.3,13.35053846]
[1746350562234,11.11031957,1832.8,1832.3,13.29577772]
[1746350562514,11.11031957,1832.8,1832.4,5.45730051]
[1746350563334,5.65398989,1832.8,1832.5,5.45682993]
[1746350563823,5.65398989,1832.8,1832.5,5.45679367]
[1746350565019,5.64217924,1832.8,1832.5,5.45679367]
[1746350565424,5.64217924,1832.8,1832.5,1.60359254]
[1746350565727,5.64217924,1832.8,1832.5,7.35374714]
[1746350568215,5.64217924,1832.8,1832.5,7.35372491]
[1746350570625,5.64217924,1832.8,1832.6,6.22210566]
[1746350570791,5.64217924,1832.8,1832.6,0.7655]
[1746350571141,5.64217924,1832.8,1832.5,7.35381088]
[1746350572523,5.64217924,1832.8,1832.5,7.35374004]
[1746350573134,5.64217924,1832.8,1832.2,6.45776792]
[1746350573135,5.45687045,1832.6,1832.2,6.45776792]
[1746350574293,6.2584147,1832.7,1832.2,6.45768065]
[1746350574596,11.71512315,1832.7,1832.2,6.4576715]
[1746350574795,6.2584147,1832.7,1832.2,11.91538712]
[1746350576165,0.30706124,1832.6,1832.2,11.91536155]
[1746350576338,0.30706124,1832.6,1832.2,7.80956115]
[1746350576634,0.30706124,1832.6,1832.2,7.86417914]
[1746350576815,0.30706124,1832.6,1832.2,7.80960756]
[1746350577021,5.76380819,1832.6,1832.2,7.80960756]
[1746350577222,5.45674695,1832.6,1832.2,7.80958283]
[1746350577636,5.45674695,1832.6,1832.2,6.45768742]
[1746350578131,5.45674695,1832.6,1832.2,6.51225906]
[1746350578642,5.45674695,1832.6,1832.2,6.51222964]
[1746350578939,5.45674695,1832.6,1832.2,6.457658]
[1746350579433,5.45674695,1832.6,1832.2,6.51222965]
[1746350580043,5.45674695,1832.6,1832.2,6.457658]
[1746350580218,5.45674695,1832.6,1832.2,6.51222958]
[1746350581211,5.45674695,1832.6,1832.2,7.86961869]
[1746350582061,5.45674695,1832.6,1832.2,7.81504711]
[1746350582221,6.25835078,1832.7,1832.3,5.45760457]
[1746350582610,11.71502024,1832.7,1832.3,5.45760457]
[1746350582853,6.25835078,1832.7,1832.3,5.45760457]
[1746350583143,11.71504482,1832.7,1832.3,5.45760457]
[1746350583453,17.35722406,1832.7,1832.3,5.45760457]
[1746350583613,10.07974538,1832.6,1832.2,7.8150994]
[1746350583809,10.07974538,1832.6,1832.2,7.86967157]
[1746350584244,4.623,1832.6,1832.3,5.45761394]
[1746350584551,4.623,1832.6,1832.3,6.2445811]
[1746350584746,5.45760759,1832.4,1832.2,0.2344769]
[1746350585051,6.24030759,1832.4,1832.2,0.2344769]
[1746350586542,0.7827,1832.4,1832.2,5.69233527]
[1746350586742,16.3196018,1832.6,1832.2,0.2344769]
[1746350586949,5.45725567,1832.5,1832.2,0.2344769]
[1746350587158,5.45739086,1832.4,1832.2,0.2344769]
[1746350587752,0.7827,1832.5,1832.2,0.2344769]
[1746350587917,5.45748633,1832.4,1832.2,0.2344769]
[1746350588557,0.7827,1832.5,1832.2,0.2344769]
[1746350588718,5.45744676,1832.4,1832.2,0.2344769]
[1746350589354,11.099626,1832.4,1832.2,0.2344769]
[1746350589714,5.64217924,1832.4,1832.2,0.2344769]
[1746350589939,11.09961784,1832.4,1832.2,0.2344769]
[1746350591549,5.45762156,1832.3,1832.2,0.2344769]
[1746350591917,11.0996889,1832.4,1832.2,0.2344769]
[1746350592830,5.45762156,1832.3,1832.2,0.2344769]
[1746350593558,11.09970075,1832.4,1832.2,0.2344769]
[1746350595651,5.64217924,1832.4,1832.2,0.2344769]
[1746350595951,11.09965675,1832.4,1832.2,0.2344769]
[1746350599855,5.45762156,1832.3,1832.2,0.2344769]
[1746350600247,11.09968624,1832.4,1832.2,0.2344769]
[1746350601564,11.09968624,1832.4,1832.3,5.45762156]
[1746350601565,5.64217924,1832.4,1832.3,5.45762156]
[1746350601773,10.26617924,1832.8,1832.5,5.4569132]
[1746350601934,10.26617924,1832.8,1832.5,5.51147802]
[1746350602128,10.26617924,1832.8,1832.5,5.4569132]
[1746350604471,5.64217924,1832.8,1832.7,0.7746]
[1746350605031,19.69,1833.0,1832.8,5.45599529]
[1746350606429,19.69,1833.0,1832.7,6.85945311]
[1746350606667,19.69,1833.0,1832.7,0.62858163]
[1746350606668,25.93624444,1833.0,1832.7,0.62858163]
[1746350606969,25.93626877,1833.0,1832.6,0.7746]
[1746350607981,25.93626877,1833.0,1832.6,6.2313271]
[1746350608139,25.93626877,1833.0,1832.6,0.7746]
[1746350608333,25.93626877,1833.0,1832.6,6.23130405]
[1746350608643,5.45604358,1832.9,1832.6,0.7746]
[1746350608955,1.3406,1832.9,1832.2,6.46678406]
[1746350609275,5.45675953,1832.6,1832.4,3.681529]
[1746350609435,6.24735953,1832.6,1832.4,3.681529]
[1746350611465,5.45702592,1832.5,1832.4,3.681529]
[1746350611659,11.09920516,1832.5,1832.4,3.681529]
[1746350612367,5.64217924,1832.5,1832.4,3.681529]
[1746350613580,5.64217924,1832.5,1832.2,0.2344769]
[1746350613743,11.09921226,1832.5,1832.2,0.2344769]
[1746350615686,5.45743625,1832.4,1832.2,0.2344769]
[1746350616580,11.09939556,1832.5,1832.2,0.2344769]
[1746350617384,4.599,1832.4,1832.2,0.2344769]
[1746350621221,10.05642731,1832.4,1832.2,0.2344769]
[1746350621983,4.599,1832.4,1832.2,0.2344769]
[1746350625672,10.05634104,1832.4,1832.2,0.2344769]
[1746350626789,4.599,1832.4,1832.2,0.2344769]
[1746350628399,10.05634886,1832.4,1832.2,0.2344769]
[1746350641430,15.51394203,1832.4,1832.2,0.2344769]
[1746350641657,5.45762156,1832.3,1832.2,0.2344769]
[1746350641789,10.05649039,1832.4,1832.2,0.2344769]
[1746350644007,15.51408366,1832.4,1832.2,0.2344769]
[1746350644326,10.05649039,1832.4,1832.2,0.2344769]
[1746350645287,15.51405958,1832.4,1832.2,0.2344769]
[1746350645534,17.00459334,1832.3,1832.2,1e-08]
[1746350645894,17.31228868,1832.3,1832.2,1e-08]
[1746350647747,9.00911125,1831.8,1831.7,3.681529]
[1746350648048,20.00149049,1831.8,1831.7,3.681529]
[1746350648390,20.30918583,1831.8,1831.7,3.681529]
[1746350648887,21.91277837,1831.8,1831.7,3.681529]
[1746350649525,20.30918583,1831.8,1831.7,3.681529]
[1746350650920,20.30918583,1831.8,1831.2,1.60359254]
[1746350650921,5.46060175,1831.3,1831.2,1.60359254]
[1746350651359,10.05947482,1831.4,1831.2,1.60359254]
[1746350651556,10.05947482,1831.4,1831.1,0.7713]
[1746350651735,5.46089995,1831.2,1831.1,0.7713]
[1746350652661,5.46089995,1831.2,1831.1,2.37489254]
[1746350653126,5.46089995,1831.2,1831.1,2.22489254]
[1746350653464,5.46089995,1831.2,1831.1,0.6213]
[1746350653768,4.19927256,1831.1,1831.0,3.681529]
[1746350654671,5.46085714,1831.3,1831.0,3.73613872]
[1746350654968,5.46085714,1831.3,1831.2,1.60359254]
[1746350658480,5.46116021,1831.2,1831.0,1.60359254]
[1746350658636,5.46119818,1831.1,1831.0,1.60359254]
[1746350660131,5.46108476,1831.2,1831.0,1.60359254]
[1746350660536,5.46119818,1831.1,1831.0,1.60359254]
[1746350660757,5.46106828,1831.2,1831.0,1.60359254]
[1746350661090,5.46110914,1831.2,1831.0,1.60359254]
[1746350664559,5.46079751,1831.3,1831.0,1.60359254]
[1746350665255,5.46079751,1831.3,1831.0,1.59178188]
[1746350668674,10.05947191,1831.4,1831.0,7.05327174]
[1746350668848,15.52005681,1831.4,1831.0,1.59178188]
[1746350669044,10.05947191,1831.4,1831.0,1.59178188]
[1746350669385,10.05947191,1831.4,1831.0,7.05326985]
[1746350669557,15.5200324,1831.4,1831.0,1.59178188]
[1746350669753,5.46063956,1831.3,1831.0,1.59178188]
[1746350672299,5.46063956,1831.3,1831.0,2.3739499]
[1746350674670,10.05951929,1831.4,1831.0,7.83543568]
[1746350676894,5.46070345,1831.3,1831.0,0.78216802]
[1746350677099,5.46070345,1831.3,1830.9,7.8334756]
[1746350677262,10.05951929,1831.4,1830.9,7.83344953]
[1746350677263,10.05950158,1831.4,1830.9,7.83344953]
[1746350677462,10.05942682,1831.4,1831.0,5.46137938]
[1746350677666,10.05942682,1831.4,1831.2,0.8152]
[1746350678206,15.51998829,1831.4,1831.1,1.60359254]
[1746350678500,15.51998283,1831.4,1831.1,1.60359254]
[1746350678671,5.46066159,1831.3,1831.1,1.60359254]
[1746350679662,10.05949379,1831.4,1831.1,1.60359254]
[1746350680194,5.64217924,1831.6,1831.3,1.60359254]
[1746350680394,19.689,1832.0,1831.3,1.60359254]
[1746350680395,4.6,1831.7,1831.5,1.60359254]
[1746350680575,4.6,1831.7,1831.5,7.06359029]
[1746350680898,4.6,1831.7,1831.5,1.60359254]
[1746350681407,4.6,1831.7,1831.5,7.06359039]
[1746350681614,5.45843749,1832.1,1831.6,6.24110735]
[1746350681817,4.6,1832.0,1831.9,0.7814]
[1746350681990,10.24217924,1832.2,1831.9,6.24008429]
[1746350682312,10.24217924,1832.2,1831.9,0.7814]
[1746350683612,10.24217924,1832.2,1831.9,7.84379566]
[1746350684378,24.302,1832.3,1832.1,1.60359254]
[1746350685001,24.302,1832.3,1832.1,7.06177427]
[1746350685201,24.302,1832.3,1832.1,1.60359254]
[1746350685422,24.302,1832.3,1832.1,7.0617753]
[1746350687619,24.302,1832.3,1832.1,1.60359254]
[1746350688621,24.30714459,1832.3,1832.0,5.45833105]
[1746350689521,24.30714459,1832.3,1832.0,5.45828222]
[1746350689725,24.30714459,1832.3,1832.1,5.458203]
[1746350689948,24.30714459,1832.3,1831.9,7.84359886]
[1746350690260,24.30714459,1832.3,1832.0,5.45830384]
[1746350691023,24.30714459,1832.3,1832.1,5.45816536]
[1746350691524,24.30714459,1832.3,1832.0,5.45836617]
[1746350691850,24.30714459,1832.3,1832.0,5.45840601]
[1746350692254,24.30714459,1832.3,1832.0,10.91674653]
[1746350692557,24.30714459,1832.3,1832.1,5.45819463]
[1746350693356,24.30714459,1832.3,1832.0,5.45840853]
[1746350693551,24.30714459,1832.3,1832.0,5.45851528]
[1746350693715,24.30714459,1832.3,1831.9,2.38499254]
[1746350693915,24.30714459,1832.3,1832.0,10.91683076]
[1746350694146,24.30714459,1832.3,1832.0,10.91659648]
[1746350694546,24.30714459,1832.3,1832.0,5.45827993]
[1746350694746,24.30714459,1832.3,1832.1,5.45818826]
[1746350694939,24.30714459,1832.3,1832.0,5.45827505]
[1746350695229,24.30714459,1832.3,1832.0,5.45835418]
[1746350695429,24.30714459,1832.3,1832.0,5.45832826]
[1746350695641,24.30714459,1832.3,1832.0,5.45839565]
[1746350696566,24.30714459,1832.3,1832.1,5.45821216]
[1746350698770,4.60514459,1832.3,1832.1,5.45821216]
[1746350699570,4.60514459,1832.3,1832.1,7.0618047]
[1746350700383,4.60514459,1832.3,1832.1,12.51990499]
[1746350700574,4.60514459,1832.3,1832.1,7.06169283]
[1746350702194,4.60514459,1832.3,1832.1,1.60359254]
[1746350702498,4.60514459,1832.3,1831.9,1.60359254]
[1746350702499,6.2638477,1832.2,1831.9,1.60359254]
[1746350702791,6.26385686,1832.2,1831.7,7.06276404]
[1746350702960,0.8058,1832.2,1831.8,5.4589811]
[1746350703288,0.8058,1832.2,1831.9,5.45879684]
[1746350703793,0.8058,1832.2,1831.9,7.06238938]
[1746350704258,6.26372056,1832.2,1831.9,1.60359254]
[1746350706590,11.9058998,1832.2,1831.9,1.60359254]
[1746350707720,5.45823352,1832.1,1831.9,1.60359254]
[1746350707880,6.44797924,1832.2,1831.9,1.60359254]
[1746350708081,11.90615032,1832.2,1831.9,1.60359254]
[1746350708796,11.90614949,1832.2,1831.9,1.60359254]
[1746350709096,5.45825266,1832.1,1831.9,1.60359254]
[1746350709466,5.45825266,1832.1,1831.7,5.45917932]
[1746350710404,5.45825266,1832.1,1831.7,10.9183592]
[1746350710697,11.90609458,1832.2,1831.7,10.9183592]
[1746350710901,11.90609458,1832.2,1831.8,5.45910457]
[1746350711616,11.90609458,1832.2,1831.8,5.45888771]
[1746350712007,6.44797924,1832.2,1831.8,2.39469254]
[1746350712326,5.64217924,1832.2,1832.1,6.24931734]
[1746350712482,0.00514459,1832.3,1832.1,6.24931734]
[1746350712683,0.00514459,1832.3,1832.0,7.06192284]
[1746350712684,5.45805858,1832.2,1831.9,0.7911]
[1746350712906,5.45805858,1832.2,1831.8,5.45908585]
[1746350713082,5.45853741,1832.0,1831.7,0.7911]
[1746350713278,5.45825176,1832.1,1831.7,0.7911]
[1746350713499,5.45825176,1832.1,1831.7,6.25032962]
[1746350713898,5.45825176,1832.1,1831.7,6.25028056]
[1746350714292,5.45810789,1832.2,1831.8,5.45903695]
[1746350714615,5.45810789,1832.2,1831.7,0.7911]
[1746350714922,5.45810789,1832.2,1831.8,1.60359254]
[1746350716119,5.45822713,1832.1,1831.8,1.60359254]
[1746350716294,10.05422713,1832.1,1831.8,1.60359254]
[1746350716494,4.596,1832.1,1831.8,1.60359254]
[1746350716893,5.45892226,1831.9,1831.5,6.25096214]
[1746350717210,6.23830745,1832.0,1831.5,13.31432987]
[1746350717381,6.23830745,1832.0,1831.6,5.45967976]
[1746350717990,5.45870745,1832.0,1831.6,5.45967976]
[1746350718623,5.45870745,1832.0,1831.6,5.45946554]
[1746350719730,10.91750067,1832.0,1831.5,7.85457439]
[1746350719900,5.45870745,1832.0,1831.5,9.18605177]
[1746350720106,5.45870745,1832.0,1831.6,5.45964546]
[1746350723535,6.23830745,1832.0,1831.6,5.45964546]
[1746350725837,5.4588461,1831.9,1831.5,9.18604336]
[1746350726328,0.7796,1832.0,1831.5,2.93506992]
[1746350726541,5.4589382,1831.9,1831.5,1.60359254]
[1746350727042,5.4589382,1831.9,1831.5,7.0634885]
[1746350729851,5.4589382,1831.9,1831.4,6.26469737]
[1746350729852,6.26088947,1831.8,1831.4,6.26469737]
[1746350730654,6.26089385,1831.8,1831.4,6.2646886]
[1746350731336,10.85489385,1831.8,1831.4,6.26448812]
[1746350731715,10.85489385,1831.8,1831.4,11.72457625]
[1746350731916,10.85489385,1831.8,1831.4,7.9654579]
[1746350732864,10.85489385,1831.8,1831.4,13.42554695]
[1746350733016,10.85489385,1831.8,1831.4,7.9654579]
[1746350733720,5.3956,1831.8,1831.4,7.96543896]
[1746350733920,5.3956,1831.8,1831.5,5.45989492]
[1746350734862,5.3956,1831.8,1831.5,5.45996084]
[1746350735919,5.3956,1831.8,1831.5,10.9198066]
[1746350736120,5.3956,1831.8,1831.5,5.45984576]
[1746350736321,11.10022191,1832.2,1831.8,5.45903222]
[1746350736520,4.594,1832.0,1831.8,5.45903222]
[1746350736950,4.594,1832.1,1831.8,5.45903222]
[1746350737456,4.594,1832.1,1831.9,5.45879406]
[1746350737766,4.594,1832.1,1831.8,5.45899658]
[1746350739122,4.594,1832.2,1831.9,7.82389981]
[1746350739323,4.59914459,1832.3,1832.0,5.45829957]
[1746350739567,0.00514459,1832.3,1832.1,2.36519254]
[1746350739857,0.00514459,1832.3,1832.2,5.45791944]
[1746350740324,0.00514459,1832.3,1832.1,7.82322978]
[1746350740521,0.00514459,1832.3,1832.1,9.15139402]
[1746350740740,0.00514459,1832.3,1832.0,5.45846773]
[1746350741779,0.00514459,1832.3,1831.9,7.82378838]
[1746350741956,5.46289846,1832.3,1831.9,7.82378838]
[1746350742481,0.00514459,1832.3,1831.9,13.28241989]
[1746350742639,0.00514459,1832.3,1832.0,5.45833492]
[1746350743134,0.00514459,1832.3,1832.1,7.0616931]
[1746350743472,0.00514459,1832.3,1832.2,6.21951944]
[1746350744181,0.00514459,1832.3,1832.1,5.45812594]
[1746350744482,0.00514459,1832.3,1832.1,10.9160466]
[1746350744850,0.00514459,1832.3,1832.2,5.45791944]
[1746350745054,0.00514459,1832.3,1832.2,6.79151138]
[1746350745264,0.00514459,1832.3,1832.2,8.39510392]
[1746350756089,0.00514459,1832.3,1832.2,7.60730392]
[1746350756772,0.00514459,1832.3,1832.2,6.00371138]
[1746350756974,0.00514459,1832.3,1832.1,5.45797289]
[1746350757476,0.00514459,1832.3,1832.1,7.06156543]
[1746350757672,0.00514459,1832.3,1832.2,5.45791944]
[1746350758118,0.00514459,1832.3,1832.1,7.06156543]
[1746350758419,0.00514459,1832.3,1832.2,5.45791944]
[1746350759110,0.00514459,1832.3,1832.1,12.5195902]
[1746350759302,0.00514459,1832.3,1832.1,8.39071445]
[1746350759702,0.00514459,1832.3,1832.1,2.93274156]
[1746350760015,0.00514459,1832.3,1832.1,8.39089816]
[1746350760513,0.00514459,1832.3,1832.1,2.93274156]
[1746350760807,0.00514459,1832.3,1832.1,8.39079976]
[1746350761606,0.00514459,1832.3,1832.1,8.39072764]
[1746350761807,0.00514459,1832.3,1832.2,6.2969922]
[1746350762602,0.00514459,1832.3,1832.2,0.83907276]
[1746350762807,0.00514459,1832.3,1832.1,1.60359254]
[1746350765147,5.46288271,1832.3,1832.1,1.60359254]
[1746350765354,0.75744459,1832.3,1832.1,1.60359254]
[1746350765519,0.75744459,1832.3,1831.9,7.06221533]
[1746350765706,0.75744459,1832.3,1831.9,7.84629686]
[1746350766157,0.75744459,1832.3,1831.9,13.30491965]
[1746350766357,0.75744459,1832.3,1831.9,2.38767407]
[1746350766515,5.45805096,1832.2,1831.8,7.84106388]
[1746350767561,6.21508344,1832.3,1831.8,7.84106388]
[1746350767719,6.21508344,1832.3,1831.9,5.45880522]
[1746350768455,6.21508344,1832.3,1831.8,7.84112616]
[1746350768758,5.45796999,1832.2,1831.8,9.17116338]
[1746350774248,5.45796999,1832.2,1831.8,9.17112017]
[1746350775915,6.21521608,1832.3,1831.8,9.17112017]
[1746350776121,6.21521608,1832.3,1832.0,1.60359254]
[1746350776725,6.21521608,1832.3,1832.0,7.06200488]
[1746350776726,0.75744459,1832.3,1832.0,7.06200488]
[1746350776946,0.75744459,1832.3,1832.0,8.31408306]
[1746350779059,0.7523,1832.3,1832.0,8.31408306]
[1746350779633,0.7523,1832.3,1832.0,8.31397734]
[1746350781450,0.7523,1832.3,1832.0,13.77228768]
[1746350781672,0.7523,1832.3,1832.0,8.31397734]
[1746350781862,0.7523,1832.3,1832.1,5.45819763]
[1746350782153,5.64217924,1832.4,1832.2,1.60359254]
[1746350782333,5.64217924,1832.4,1832.2,7.06146471]
[1746350783877,5.64217924,1832.4,1832.2,1.60359254]
[1746350784078,5.64217924,1832.4,1832.2,7.06151143]
[1746350784278,5.64217924,1832.4,1832.2,1.60359254]
[1746350787989,11.09951847,1832.4,1832.0,5.45830603]
[1746350789208,11.09951847,1832.4,1832.0,5.45829144]
[1746350789393,5.64217924,1832.4,1832.0,5.45829144]
[1746350789696,5.64217924,1832.4,1832.1,5.45818112]
[1746350789857,5.64217924,1832.4,1832.3,1.60359254]
[1746350790293,5.64217924,1832.4,1832.3,7.0612141]
[1746350792420,5.64217924,1832.4,1832.3,8.39534649]
[1746350794570,10.85114402,1832.8,1832.4,5.45727854]
[1746350794771,10.85114402,1832.8,1832.5,1.60359254]
[1746350798085,5.45647331,1832.7,1832.5,1.60359254]
[1746350798328,6.26228394,1832.6,1832.3,1.60359254]
[1746350800801,0.8054,1832.6,1832.3,1.60359254]
[1746350800984,6.26227795,1832.6,1832.3,1.60359254]
[1746350801183,6.26227795,1832.6,1832.2,5.45790084]
[1746350801387,6.26227795,1832.6,1832.4,1.60359254]
[1746350802629,0.8054,1832.6,1832.4,1.60359254]
[1746350804290,6.26215719,1832.6,1832.4,1.60359254]
[1746350805629,6.26215719,1832.6,1832.2,6.2290859]
[1746350805630,5.45703678,1832.5,1832.2,1.60359254]
[1746350805829,5.45703678,1832.5,1832.1,7.06163068]
[1746350807435,0.7982,1832.4,1832.1,7.06163068]
[1746350808739,0.7982,1832.4,1832.0,0.7792]
[1746350808911,5.45773974,1832.3,1832.0,1.60359254]
[1746350809114,5.45773974,1832.3,1831.9,9.14020824]
[1746350809328,5.45773974,1832.3,1832.0,1.60359254]
[1746350810025,5.45773974,1832.3,1831.9,9.14020824]
[1746350810343,5.45773974,1832.3,1832.0,1.60359254]
[1746350810540,0.802,1832.2,1831.9,9.14020824]
[1746350810842,0.802,1832.2,1831.9,10.74380078]
[1746350811249,5.4575026,1832.4,1831.9,10.7437319]
[1746350811542,6.2595026,1832.4,1831.9,16.20230589]
[1746350811707,6.2595026,1832.4,1831.9,10.74370386]
[1746350812138,5.4576597,1832.3,1832.1,1.60359254]
[1746350812329,5.4576597,1832.3,1832.0,1.60359254]
[1746350812529,5.4576597,1832.3,1831.9,5.4585748]
[1746350812703,5.4576597,1832.3,1832.0,1.60359254]
[1746350814739,6.2595153,1832.4,1832.0,7.06207322]
[1746350815742,11.71709183,1832.4,1832.0,1.60359254]
[1746350816335,6.2595153,1832.4,1832.0,1.60359254]
[1746350816523,6.2595153,1832.4,1832.0,7.06195731]
[1746350816723,6.25949317,1832.4,1832.0,1.60359254]
[1746350818227,6.25949317,1832.4,1832.2,1.60359254]
[1746350818641,5.45865038,1832.0,1831.8,3.681529]
[1746350818831,5.45865038,1832.0,1831.9,1.60359254]
[1746350821050,10.04140976,1832.1,1831.9,1.60359254]
[1746350821616,4.583,1832.1,1831.9,1.60359254]
[1746350821822,4.583,1832.1,1831.9,2.67801318]
[1746350822960,4.583,1832.1,1831.9,8.13676022]
[1746350823732,4.583,1832.1,1832.0,5.45851528]
[1746350823931,4.583,1832.1,1831.9,8.13670405]
[1746350825563,4.583,1832.1,1831.9,2.67801318]
[1746350826558,4.583,1832.1,1831.9,1.60359254]
[1746350826857,10.04134729,1832.1,1831.9,1.60359254]
[1746350827755,4.583,1832.1,1831.9,1.60359254]
[1746350827960,4.583,1832.1,1831.9,2.42739254]
[1746350828168,4.583,1832.1,1831.9,9.48968511]
[1746350828668,4.583,1832.1,1832.0,0.94896851]
[1746350830272,5.45851528,1832.0,1831.9,1.60359254]
[1746350830477,10.80350688,1832.1,1831.9,1.60359254]
[1746350831173,5.3451,1832.1,1831.9,1.60359254]
[1746350831334,5.45851528,1832.0,1831.9,1.60359254]
[1746350836654,10.80347617,1832.1,1831.9,1.60359254]
[1746350838785,5.64217924,1832.2,1832.0,5.45851528]
[1746350839074,5.64217924,1832.2,1832.1,1.60359254]
[1746350839773,5.64217924,1832.2,1832.1,10.06180988]
[1746350839977,5.64217924,1832.2,1832.1,7.06180988]
[1746350840272,4.583,1832.3,1832.1,8.3136319]
[1746350842878,4.583,1832.3,1832.1,2.85560608]
[1746350843386,4.583,1832.3,1832.1,8.31369022]
[1746350844564,4.583,1832.3,1832.2,5.45791944]
[1746350845091,4.583,1832.3,1832.1,8.31365374]
[1746350846812,4.583,1832.3,1832.1,13.77162619]
[1746350846993,4.583,1832.3,1832.2,1.37716262]
[1746350849390,4.583,1832.3,1832.1,1.60359254]
[1746350849601,10.79388436,1832.3,1831.9,3.0]
[1746350849800,5.3361,1832.3,1832.1,1.60359254]
[1746350850886,10.79377508,1832.3,1832.1,1.60359254]
[1746350851203,5.45791944,1832.2,1832.1,1.60359254]
[1746350851497,10.79389969,1832.3,1832.1,1.60359254]
[1746350852363,16.25179874,1832.3,1832.1,1.60359254]
[1746350852563,5.45791944,1832.2,1832.1,1.60359254]
[1746350855801,5.45859636,1832.0,1831.9,1.60359254]
[1746350857006,6.20879636,1832.0,1831.9,1.60359254]
[1746350857165,5.45881325,1831.9,1831.8,3.681529]
[1746350857499,10.03881325,1831.9,1831.8,3.681529]
[1746350858401,5.45911125,1831.8,1831.7,1.60359254]
[1746350859418,5.45911125,1831.8,1831.7,1.503512]
[1746350863422,4.58,1831.9,1831.4,3.0]
[1746350863727,5.45958647,1831.7,1831.6,1.60359254]
[1746350867822,6.28348647,1831.7,1831.6,1.60359254]
[1746350870317,5.45970735,1831.6,1831.5,1.60359254]
[1746350871224,5.46030359,1831.4,1831.3,1.60359254]
[1746350884527,5.46209307,1830.8,1830.6,3.681529]
[1746350884727,10.04039143,1830.7,1830.6,5.28512154]
[1746350885818,10.04039143,1830.7,1830.4,0.4093695]
[1746350885819,10.80959143,1830.7,1830.4,0.4093695]
[1746350886022,6.23308372,1830.2,1830.1,4.77145653]
[1746350886220,10.81108372,1830.2,1830.1,4.77145653]
[1746350886447,10.81108372,1830.2,1829.9,0.25870248]